fUST/lending_fUST_20250704
["ID","MTS","AMOUNT","RATE_DAILY","PERIOD"]
[369397767,1751565044121,-460.0,0.00017534,2]
[369397769,1751565044131,-460.0,0.00017534,2]
[369397771,1751565044140,-460.0,0.00017534,2]
[369397773,1751565044149,-599.8,0.00017534,2]
[369397775,1751565044159,-742.29,0.00017534,2]
[369397777,1751565044168,-3068.84,0.00017534,2]
[369397779,1751565044177,-1619.49,0.00017534,2]
[369397781,1751565044187,-460.0,0.00017534,2]
[369397783,1751565044196,-1349.38,0.00017534,2]
[369397785,1751565044206,-2927.24,0.00017534,2]
[369397787,1751565044215,-460.0,0.00017534,2]
[369397789,1751565044225,-460.0,0.00017534,2]
[369397791,1751565044234,-460.0,0.00017534,2]
[369397793,1751565044243,-460.0,0.00017534,2]
[369397795,1751565044253,-460.0,0.00017534,2]
[369397797,1751565044262,-460.0,0.00017534,2]
[369397799,1751565044271,-460.0,0.00017534,2]
[369397801,1751565044281,-460.0,0.00017534,2]
[369397803,1751565044290,-460.0,0.00017534,2]
[369397805,1751565044299,-460.0,0.00017808,2]
[369397807,1751565044308,-784.75,0.00017808,2]
[369397809,1751565044317,-460.0,0.00017808,2]
[369397811,1751565044327,-460.0,0.00017808,2]
[369397813,1751565044337,-460.0,0.00017808,2]
[369397815,1751565044346,-649.66,0.00017808,2]
[369397817,1751565044355,-460.0,0.00017808,2]
[369397819,1751565044365,-460.0,0.00017808,2]
[369397821,1751565044374,-460.0,0.00017808,2]
[369397823,1751565044383,-1132.76,0.00017808,2]
[369397825,1751565044392,-460.0,0.00017808,2]
[369397827,1751565044404,-460.0,0.00017808,2]
[369397829,1751565044413,-2251.14,0.00017808,2]
[369397831,1751565044423,-199.92600023,0.00017808,2]
[369397833,1751565044433,-869.66,0.00017808,2]
[369397835,1751565044442,-2096.39,0.00017808,2]
[369397837,1751565044452,-460.0,0.00017808,2]
[369397839,1751565044463,-460.0,0.00017808,2]
[369397841,1751565044473,-460.0,0.00017808,2]
[369397843,1751565044483,-884.76,0.00017808,2]
[369397845,1751565044493,-460.0,0.00017808,2]
[369397848,1751565044503,-164.05406319,0.00017808,2]
[369397850,1751565044513,-460.0,0.00017808,2]
[369397852,1751565044523,-460.0,0.00017808,2]
[369397854,1751565044535,-837.83,0.00017808,2]
[369397856,1751565044545,-460.0,0.00017808,2]
[369397858,1751565044554,-460.0,0.00017808,2]
[369397860,1751565044564,-494.00913631,0.00017808,2]
[369397862,1751565044574,-1685.21,0.00017808,2]
[369397864,1751565044584,-460.0,0.00017808,2]
[369397866,1751565044594,-460.0,0.00017808,2]
[369397868,1751565044603,-2114.87,0.00017808,2]
[369397870,1751565044612,-460.0,0.00017808,2]
[369397872,1751565044622,-2539.26,0.00017808,2]
[369397874,1751565044633,-620.44,0.00017808,2]
[369397876,1751565044642,-460.0,0.00017808,2]
[369397878,1751565044652,-460.0,0.00017808,2]
[369397880,1751565044662,-1992.14,0.00017808,2]
[369397882,1751565044672,-460.0,0.00017808,2]
[369397884,1751565044682,-460.0,0.00017808,2]
[369397886,1751565044692,-514.73,0.00017808,2]
[369397888,1751565044701,-460.0,0.00017808,2]
[369397890,1751565044711,-928.99,0.00017808,2]
[369397892,1751565044721,-1316.42,0.00017808,2]
[369397894,1751565044730,-460.0,0.00017808,2]
[369397896,1751565044740,-460.0,0.00017808,2]
[369397898,1751565044750,-460.0,0.00017808,2]
[369397900,1751565044760,-460.0,0.00017808,2]
[369397902,1751565044771,-460.0,0.00017808,2]
[369397904,1751565044780,-460.0,0.00017808,2]
[369397906,1751565044789,-742.29,0.00017808,2]
[369397908,1751565044799,-3068.84,0.00017808,2]
[369397910,1751565044808,-1619.49,0.00017808,2]
[369397912,1751565044818,-460.0,0.00017808,2]
[369397914,1751565044827,-1349.38,0.00017808,2]
[369397916,1751565044837,-2927.24,0.00017808,2]
[369397919,1751565044847,-460.0,0.00017808,2]
[369397921,1751565044857,-460.0,0.00017808,2]
[369397923,1751565044866,-460.0,0.00017808,2]
[369397925,1751565044876,-460.0,0.00017808,2]
[369397927,1751565044886,-460.0,0.00017808,2]
[369397929,1751565044896,-460.0,0.00017808,2]
[369397931,1751565044906,-460.0,0.00017808,2]
[369397933,1751565044916,-321.48,0.00017808,2]
[369397935,1751565044925,-460.0,0.00017808,2]
[369397937,1751565044935,-225.44708872,0.00017816,2]
[369397939,1751565044945,-1000.0,0.00017832,2]
[369397941,1751565044954,-1131.15,0.00018,2]
[369397943,1751565044963,-1500.0,0.00018032,2]
[369397945,1751565044973,-324.24,0.00018072,3]
[369397947,1751565044983,-784.75,0.00018082,2]
[369397949,1751565044992,-460.0,0.00018082,2]
[369397951,1751565045001,-460.0,0.00018082,2]
[369397953,1751565045010,-460.0,0.00018082,2]
[369397955,1751565045020,-649.66,0.00018082,2]
[369397957,1751565045029,-460.0,0.00018082,2]
[369397959,1751565045039,-460.0,0.00018082,2]
[369397961,1751565045050,-460.0,0.00018082,2]
[369397963,1751565045059,-1132.76,0.00018082,2]
[369397965,1751565045069,-460.0,0.00018082,2]
[369397967,1751565045078,-460.0,0.00018082,2]
[369397969,1751565045088,-2251.14,0.00018082,2]
[369397971,1751565045098,-869.66,0.00018082,2]
[369397973,1751565045108,-2096.39,0.00018082,2]
[369397975,1751565045118,-196.82976634,0.00018082,2]
[369397977,1751565045127,-460.0,0.00018082,2]
[369397979,1751565045137,-460.0,0.00018082,2]
[369397981,1751565045146,-884.76,0.00018082,2]
[369397983,1751565045156,-460.0,0.00018082,2]
[369397985,1751565045165,-460.0,0.00018082,2]
[369397987,1751565045175,-334.42818556,0.00018082,2]
[369397989,1751565045185,-837.83,0.00018082,2]
[369397991,1751565045194,-460.0,0.00018082,2]
[369397993,1751565045204,-460.0,0.00018082,2]
[369397995,1751565045213,-1685.21,0.00018082,2]
[369397997,1751565045223,-340.11274023,0.00018082,2]
[369397999,1751565045233,-460.0,0.00018082,2]
[369398001,1751565045243,-2114.87,0.00018082,2]
[369398003,1751565045253,-460.0,0.00018082,2]
[369398005,1751565045263,-2539.26,0.00018082,2]
[369398007,1751565045273,-620.44,0.00018082,2]
[369398009,1751565045282,-460.0,0.00018082,2]
[369398011,1751565045292,-460.0,0.00018082,2]
[369398013,1751565045301,-1992.14,0.00018082,2]
[369398015,1751565045311,-460.0,0.00018082,2]
[369398017,1751565045321,-460.0,0.00018082,2]
[369398019,1751565045330,-514.73,0.00018082,2]
[369398021,1751565045339,-460.0,0.00018082,2]
[369398023,1751565045349,-928.99,0.00018082,2]
[369398025,1751565045358,-1316.42,0.00018082,2]
[369398027,1751565045368,-460.0,0.00018082,2]
[369398029,1751565045377,-237.1,0.00018082,2]
[369398031,1751565045387,-460.0,0.00018082,2]
[369398033,1751565045396,-460.0,0.00018082,2]
[369398035,1751565045406,-460.0,0.00018082,2]
[369398037,1751565045415,-742.29,0.00018082,2]
[369398039,1751565045425,-3068.84,0.00018082,2]
[369398041,1751565045434,-1619.49,0.00018082,2]
[369398043,1751565045444,-460.0,0.00018082,2]
[369398045,1751565045455,-1349.38,0.00018082,2]
[369398047,1751565045466,-2927.24,0.00018082,2]
[369398049,1751565045475,-460.0,0.00018082,2]
[369398051,1751565045485,-460.0,0.00018082,2]
[369398053,1751565045495,-460.0,0.00018082,2]
[369398055,1751565045506,-460.0,0.00018082,2]
[369398057,1751565045516,-460.0,0.00018082,2]
[369398059,1751565045525,-460.0,0.00018082,2]
[369398061,1751565045536,-460.0,0.00018082,2]
[369398063,1751565045547,-316.16,0.00018082,2]
[369398065,1751565045557,-587.0,0.00018202,2]
[369398067,1751565045568,-250.0,0.00018319,2]
[369398070,1751565045578,-1256.58624195,0.00018345,2]
[369398072,1751565045588,-784.75,0.00018356,2]
[369398074,1751565045598,-460.0,0.00018356,2]
[369398076,1751565045608,-460.0,0.00018356,2]
[369398078,1751565045619,-460.0,0.00018356,2]
[369398080,1751565045628,-649.66,0.00018356,2]
[369398082,1751565045638,-460.0,0.00018356,2]
[369398084,1751565045648,-239.77186916,0.00018356,2]
[369398086,1751565045657,-460.0,0.00018356,2]
[369398088,1751565045667,-1132.76,0.00018356,2]
[369398090,1751565045677,-460.0,0.00018356,2]
[369398091,1751565045686,-460.0,0.00018356,2]
[369398092,1751565045696,-2251.14,0.00018356,2]
[369398093,1751565045705,-869.66,0.00018356,2]
[369398094,1751565045714,-2096.39,0.00018356,2]
[369398095,1751565045723,-460.0,0.00018356,2]
[369398096,1751565045732,-460.0,0.00018356,2]
[369398097,1751565045742,-884.76,0.00018356,2]
[369398098,1751565045751,-460.0,0.00018356,2]
[369398099,1751565045761,-460.0,0.00018356,2]
[369398100,1751565045770,-837.83,0.00018356,2]
[369398101,1751565045780,-460.0,0.00018356,2]
[369398102,1751565045790,-402.73,0.00018356,2]
[369398105,1751565045800,-1685.21,0.00018356,2]
[369398107,1751565045810,-460.0,0.00018356,2]
[369398109,1751565045819,-2114.87,0.00018356,2]
[369398111,1751565045829,-460.0,0.00018356,2]
[369398113,1751565045839,-2539.26,0.00018356,2]
[369398115,1751565045849,-620.44,0.00018356,2]
[369398117,1751565045859,-460.0,0.00018356,2]
[369398119,1751565045868,-460.0,0.00018356,2]
[369398121,1751565045878,-1992.14,0.00018356,2]
[369398123,1751565045888,-460.0,0.00018356,2]
[369398125,1751565045898,-460.0,0.00018356,2]
[369398127,1751565045908,-514.73,0.00018356,2]
[369398129,1751565045918,-460.0,0.00018356,2]
[369398132,1751565045928,-928.99,0.00018356,2]
[369398134,1751565045938,-1316.42,0.00018356,2]
[369398136,1751565045949,-460.0,0.00018356,2]
[369398138,1751565045959,-460.0,0.00018356,2]
[369398140,1751565045968,-460.0,0.00018356,2]
[369398142,1751565045978,-460.0,0.00018356,2]
[369398144,1751565045987,-742.29,0.00018356,2]
[369398146,1751565045997,-3068.84,0.00018356,2]
[369398148,1751565046006,-1619.49,0.00018356,2]
[369398150,1751565046016,-460.0,0.00018356,2]
[369398152,1751565046025,-1349.38,0.00018356,2]
[369398154,1751565046034,-2927.24,0.00018356,2]
[369398156,1751565046044,-460.0,0.00018356,2]
[369398158,1751565046054,-538.59708655,0.00018356,2]
[369398161,1751565046066,-460.0,0.00018356,2]
[369398163,1751565046077,-460.0,0.00018356,2]
[369398165,1751565046086,-460.0,0.00018356,2]
[369398167,1751565046096,-460.0,0.00018356,2]
[369398169,1751565046106,-460.0,0.00018356,2]
[369398171,1751565046115,-250.0,0.00018359,2]
[369398173,1751565046125,-1500.0,0.0001838,2]
[369398175,1751565046134,-250.0,0.00018399,2]
[369398177,1751565046145,-250.0,0.00018439,2]
[369398179,1751565046154,-250.0,0.00018479,2]
[369398181,1751565046164,-250.0,0.00018519,2]
[369398183,1751565046174,-250.0,0.0001856,2]
[369398185,1751565046183,-2000.0,0.0001858,2]
[369398187,1751565046193,-230.37558374,0.00018585,2]
[369398189,1751565046203,-12575.98004106,0.00018585,2]
[369398191,1751565046212,-160.0,0.00018585,2]
[369398193,1751565046222,-160.0,0.00018585,2]
[369398195,1751565046231,-160.0,0.00018585,2]
[369398198,1751565046242,-837.389109,0.00018585,2]
[369398200,1751565046252,-160.0,0.00018585,2]
[369398202,1751565046262,-847.79783075,0.00018585,2]
[369398204,1751565046272,-213.94585247,0.00018585,2]
[369398206,1751565046282,-215.07701991,0.00018585,2]
[369398208,1751565046292,-160.0,0.00018585,2]
[369398210,1751565046304,-160.0,0.00018585,2]
[369398212,1751565046314,-160.0,0.00018585,2]
[369398215,1751565046324,-250.0,0.000186,2]
[369398217,1751565046334,-784.75,0.0001863,2]
[369398219,1751565046344,-460.0,0.0001863,2]
[369398221,1751565046355,-460.0,0.0001863,2]
[369398223,1751565046364,-460.0,0.0001863,2]
[369398225,1751565046373,-649.66,0.0001863,2]
[369398227,1751565046383,-460.0,0.0001863,2]
[369398229,1751565046392,-1132.76,0.0001863,2]
[369398231,1751565046404,-460.0,0.0001863,2]
[369398233,1751565046414,-460.0,0.0001863,2]
[369398235,1751565046424,-2251.14,0.0001863,2]
[369398237,1751565046433,-869.66,0.0001863,2]
[369398239,1751565046444,-2096.39,0.0001863,2]
[369398242,1751565046455,-460.0,0.0001863,2]
[369398244,1751565046468,-460.0,0.0001863,2]
[369398246,1751565046478,-476.36777109,0.0001863,2]
[369398284,1751565046819,-408.39222891,0.0001863,2]
[369398286,1751565046829,-460.0,0.0001863,2]
[369398288,1751565046838,-111.46777109,0.0001863,2]
[369398291,1751565046850,-348.53222891,0.0001863,2]
[369398293,1751565046859,-103.88022131,0.0001863,2]
[369398304,1751565046956,-400.0,0.00016438,2]
[369398306,1751565046968,-60.0,0.00016438,2]
[369398308,1751565046982,-460.0,0.0001726,2]
[369398310,1751565046994,-460.0,0.00017534,2]
[369398312,1751565047003,-460.0,0.00017808,2]
[369398314,1751565047012,-460.0,0.00018082,2]
[369398316,1751565047021,-460.0,0.00018356,2]
[369398318,1751565047030,-733.94977869,0.0001863,2]
[369398320,1751565047040,-248.58036817,0.0001863,2]
[369398323,1751565047051,-211.41963183,0.0001863,2]
[369398325,1751565047062,-1685.21,0.0001863,2]
[369398327,1751565047072,-460.0,0.0001863,2]
[369398329,1751565047081,-1793.58976528,0.0001863,2]
[369398331,1751565047097,-321.28023472,0.0001863,2]
[369398334,1751565047108,-460.0,0.0001863,2]
[369398336,1751565047117,-58.71976528,0.0001863,2]
[369398354,1751565047282,-310.72936752,0.0001863,2]
[369398381,1751565047533,-160.0,0.00018585,2]
[369398383,1751565047542,-458.41132676,0.0001863,2]
[369401758,1751565198070,-166.00969974,0.00015102,2]
[369401759,1751565204406,-3.0756168,0.00015102,2]
[369401762,1751565388282,-160.95857617,0.00015101,2]
[369401763,1751565393579,-13.58412049,0.00015101,2]
[369401765,1751565574650,-161.40481742,0.00015099,2]
[369401766,1751565576237,-200.70002042,0.00015099,2]
[369401767,1751565578448,-189.77868973,0.00015099,2]
[369401768,1751565583763,-164.03419297,0.00015099,2]
[369401769,1751565589548,-188.08947561,0.00015099,2]
[369401770,1751565591796,-154.52182272,0.00015099,2]
[369401771,1751565594358,-26.37543978,0.00015099,2]
[369401774,1751565685900,216.971312,0.00013699,2]
[369401776,1751565792924,1269.3305751,0.00024704,62]
[369401777,1751565797033,-155.0022029,0.00015096,2]
[369401778,1751565798600,-158.77624001,0.00015096,2]
[369401779,1751565800340,-193.57893122,0.00015096,2]
[369401780,1751565806209,-151.97116644,0.00015096,2]
[369401781,1751565995127,24900.0,0.00014959,2]
[369401808,1751566231726,-300.0,0.00015192,2]
[369401809,1751566231736,-300.0,0.00015192,2]
[369401810,1751566231745,-368.28113904,0.00015192,2]
[369401811,1751566231758,-831.71886096,0.00015192,2]
[369401812,1751566231767,-36928.70348996,0.00015193,2]
[369401813,1751566231776,-251.80726334,0.00015194,2]
[369401815,1751566231786,-500.0,0.00015194,2]
[369401816,1751566231795,-500.0,0.00015194,2]
[369401818,1751566231804,-486.86723737,0.00015194,2]
[369401819,1751566231814,-500.0,0.00015194,2]
[369401820,1751566231823,-500.0,0.00015194,2]
[369401821,1751566231832,-500.0,0.00015194,2]
[369401822,1751566231842,-500.0,0.00015194,2]
[369401823,1751566231854,-500.0,0.00015194,2]
[369401824,1751566231863,-500.0,0.00015194,2]
[369401825,1751566231873,-500.0,0.00015194,2]
[369401826,1751566231882,-500.0,0.00015194,2]
[369401827,1751566231892,-500.0,0.00015194,2]
[369401828,1751566231901,-500.0,0.00015194,2]
[369401829,1751566231910,-500.0,0.00015194,2]
[369401830,1751566231920,-500.0,0.00015194,2]
[369401831,1751566231931,-500.0,0.00015194,2]
[369401832,1751566231940,-278.31022307,0.00015194,2]
[369401833,1751566231950,-500.0,0.00015194,2]
[369401834,1751566231959,-500.0,0.00015194,2]
[369401835,1751566231968,-500.0,0.00015194,2]
[369401836,1751566231978,-500.0,0.00015194,2]
[369401837,1751566232170,-500.0,0.00015194,2]
[369401838,1751566232180,-500.0,0.00015194,2]
[369401839,1751566232190,-500.0,0.00015194,2]
[369401840,1751566232200,-500.0,0.00015194,2]
[369401841,1751566232210,-500.0,0.00015194,2]
[369401842,1751566232219,-500.0,0.00015194,2]
[369401843,1751566232230,-500.0,0.00015194,2]
[369401844,1751566232241,-500.0,0.00015194,2]
[369401845,1751566232251,-500.0,0.00015194,2]
[369401846,1751566232260,-500.0,0.00015194,2]
[369401847,1751566232270,-500.0,0.00015194,2]
[369401848,1751566232279,-500.0,0.00015194,2]
[369401849,1751566232288,-391.38787111,0.00015194,2]
[369401850,1751566232298,-541.6562406,0.00015194,2]
[369401851,1751566232308,-500.0,0.00015194,2]
[369401852,1751566232317,-500.0,0.00015194,2]
[369401853,1751566232326,-500.0,0.00015194,2]
[369401854,1751566232335,-500.0,0.00015194,2]
[369401855,1751566232345,-500.0,0.00015194,2]
[369401856,1751566232354,-500.0,0.00015194,2]
[369401857,1751566232364,-500.0,0.00015194,2]
[369401858,1751566232373,-500.0,0.00015194,2]
[369401859,1751566232382,-500.0,0.00015194,2]
[369401860,1751566232394,-500.0,0.00015194,2]
[369401861,1751566232404,-500.0,0.00015194,2]
[369401862,1751566232414,-500.0,0.00015194,2]
[369401863,1751566232423,-500.0,0.00015194,2]
[369401864,1751566232433,-500.0,0.00015194,2]
[369401865,1751566232443,-500.0,0.00015194,2]
[369401866,1751566232452,-500.0,0.00015194,2]
[369401867,1751566232462,-500.0,0.00015194,2]
[369401868,1751566232473,-500.0,0.00015194,2]
[369401869,1751566232482,-500.0,0.00015194,2]
[369401870,1751566232492,-343.70062002,0.00015194,2]
[369401871,1751566232502,-500.0,0.00015194,2]
[369401872,1751566232511,-500.0,0.00015194,2]
[369401873,1751566232521,-500.0,0.00015194,2]
[369401874,1751566232530,-171.29513785,0.00015194,2]
[369401875,1751566232539,-500.0,0.00015194,2]
[369401876,1751566232549,-500.0,0.00015194,2]
[369401877,1751566232559,-500.0,0.00015194,2]
[369401878,1751566232568,-500.0,0.00015194,2]
[369401879,1751566232578,-500.0,0.00015194,2]
[369401880,1751566232588,-500.0,0.00015194,2]
[369401881,1751566232597,-316.64248798,0.00015966,2]
[369401882,1751566232607,-3722.27746436,0.00016313,2]
[369401883,1751566232617,-1839.69419973,0.00016338,2]
[369401884,1751566232628,-324.24,0.00016428,3]
[369401885,1751566232637,-151.0,0.00016428,2]
[369401886,1751566232646,-151.0,0.00016428,2]
[369401887,1751566232656,-151.0,0.00016428,2]
[369401888,1751566232665,-151.0,0.00016428,2]
[369401889,1751566232675,-151.0,0.00016428,2]
[369401890,1751566232685,-151.0,0.00016428,2]
[369401891,1751566232694,-151.0,0.00016428,2]
[369401892,1751566232704,-151.0,0.00016428,2]
[369401893,1751566232714,-151.0,0.00016428,2]
[369401894,1751566232725,-151.0,0.00016428,2]
[369401895,1751566232737,-151.0,0.00016428,2]
[369401896,1751566232747,-460.0,0.00016438,2]
[369401897,1751566232756,-460.0,0.00016438,2]
[369401898,1751566232765,-609.72791554,0.00016438,2]
[369401899,1751566232775,-460.0,0.00016438,2]
[369401900,1751566232785,-176.59429916,0.00016438,2]
[369401901,1751566232794,-460.0,0.00016438,2]
[369401902,1751566232804,-460.0,0.00016438,2]
[369401903,1751566232814,-460.0,0.00016438,2]
[369401904,1751566232824,-160.0,0.00016438,2]
[369401905,1751566232834,-460.0,0.00016438,2]
[369401906,1751566232845,-460.0,0.00016438,2]
[369401907,1751566232859,-460.0,0.00016438,2]
[369401908,1751566232868,-460.0,0.00016438,2]
[369401909,1751566232877,-460.0,0.00016438,2]
[369401910,1751566232887,-460.0,0.00016438,2]
[369401911,1751566232897,-460.0,0.00016438,2]
[369401912,1751566232907,-460.0,0.00016438,2]
[369401913,1751566232916,-460.0,0.00016438,2]
[369401914,1751566232926,-460.0,0.00016438,2]
[369401915,1751566232937,-460.0,0.00016438,2]
[369401916,1751566232948,-460.0,0.00016438,2]
[369401917,1751566232958,-460.0,0.00016438,2]
[369401918,1751566232968,-460.0,0.00016438,2]
[369401919,1751566232980,-460.0,0.00016438,2]
[369401920,1751566232989,-460.0,0.00016438,2]
[369401921,1751566232998,-412.33803501,0.00016438,2]
[369401922,1751566233008,-460.0,0.00016438,2]
[369401923,1751566233018,-408.16621113,0.00016438,2]
[369401924,1751566233028,-460.0,0.00016438,2]
[369401925,1751566233038,-460.0,0.00016438,2]
[369401926,1751566233049,-460.0,0.00016438,2]
[369401927,1751566233059,-460.0,0.00016438,2]
[369401928,1751566233069,-460.0,0.00016438,2]
[369401929,1751566233078,-460.0,0.00016438,2]
[369401930,1751566233088,-460.0,0.00016438,2]
[369401931,1751566233100,-460.0,0.00016438,2]
[369401932,1751566233109,-460.0,0.00016438,2]
[369401933,1751566233119,-460.0,0.00016438,2]
[369401934,1751566233129,-460.0,0.00016438,2]
[369401935,1751566233138,-460.0,0.00016438,2]
[369401936,1751566233148,-460.0,0.00016438,2]
[369401937,1751566233157,-460.0,0.00016438,2]
[369401938,1751566233167,-460.0,0.00016438,2]
[369401939,1751566233176,-460.0,0.00016438,2]
[369401940,1751566233186,-460.0,0.00016438,2]
[369401941,1751566233196,-460.0,0.00016438,2]
[369401942,1751566233205,-460.0,0.00016438,2]
[369401943,1751566233215,-460.0,0.00016438,2]
[369401944,1751566233226,-460.0,0.00016438,2]
[369401945,1751566233235,-460.0,0.00016438,2]
[369401946,1751566233245,-460.0,0.00016438,2]
[369401947,1751566233255,-460.0,0.00016438,2]
[369401948,1751566233265,-460.0,0.00016438,2]
[369401949,1751566233275,-460.0,0.00016438,2]
[369401950,1751566233284,-358.75539916,0.00016438,2]
[369401951,1751566233293,-460.0,0.00016438,2]
[369401952,1751566233304,-460.0,0.00016438,2]
[369401953,1751566233313,-460.0,0.00016438,2]
[369401954,1751566233324,-460.0,0.00016438,2]
[369401955,1751566233333,-488.59613851,0.00016438,2]
[369401956,1751566233344,-460.0,0.00016438,2]
[369401957,1751566233353,-460.0,0.00016438,2]
[369401958,1751566233364,-460.0,0.00016438,2]
[369401959,1751566233373,-460.0,0.00016438,2]
[369401960,1751566233386,-389.96325663,0.00016438,2]
[369401961,1751566233396,-460.0,0.00016438,2]
[369401962,1751566233405,-460.0,0.00016438,2]
[369401963,1751566233415,-460.0,0.00016438,2]
[369401964,1751566233424,-463.52287797,0.00016438,2]
[369401965,1751566233434,-460.0,0.00016438,2]
[369401966,1751566233443,-460.0,0.00016438,2]
[369401967,1751566233453,-460.0,0.00016438,2]
[369401968,1751566233463,-460.0,0.00016438,2]
[369401969,1751566233473,-460.0,0.00016438,2]
[369401970,1751566233483,-460.0,0.00016438,2]
[369401971,1751566233492,-460.0,0.00016438,2]
[369401972,1751566233502,-460.0,0.00016438,2]
[369401973,1751566233511,-460.0,0.00016438,2]
[369401974,1751566233521,-460.0,0.00016438,2]
[369401975,1751566233530,-460.0,0.00016438,2]
[369401976,1751566233540,-460.0,0.00016438,2]
[369401977,1751566233549,-460.0,0.00016438,2]
[369401978,1751566233560,-460.0,0.00016438,2]
[369401979,1751566233570,-323.45902304,0.00016438,2]
[369401980,1751566233580,-460.0,0.00016438,2]
[369401981,1751566233590,-460.0,0.00016438,2]
[369401982,1751566233601,-460.0,0.00016438,2]
[369401983,1751566233610,-460.0,0.00016438,2]
[369401984,1751566233620,-460.0,0.00016438,2]
[369401985,1751566233630,-460.0,0.00016438,2]
[369401986,1751566233639,-460.0,0.00016438,2]
[369401987,1751566233649,-462.62234273,0.00016438,2]
[369401988,1751566233658,-460.0,0.00016438,2]
[369401989,1751566233668,-460.0,0.00016438,2]
[369401990,1751566233678,-460.0,0.00016438,2]
[369401991,1751566233687,-460.0,0.00016438,2]
[369401992,1751566233696,-460.0,0.00016438,2]
[369401993,1751566233705,-460.0,0.00016438,2]
[369401994,1751566233715,-460.0,0.00016438,2]
[369401995,1751566233725,-429.18489741,0.00016438,2]
[369401996,1751566233734,-460.0,0.00016438,2]
[369401997,1751566233744,-460.0,0.00016438,2]
[369401998,1751566233754,-460.0,0.00016438,2]
[369401999,1751566233763,-460.0,0.00016438,2]
[369402000,1751566233772,-460.0,0.00016438,2]
[369402001,1751566233782,-460.0,0.00016438,2]
[369402002,1751566233791,-460.0,0.00016438,2]
[369402003,1751566233802,-460.0,0.00016438,2]
[369402004,1751566233811,-460.0,0.00016438,2]
[369402005,1751566233822,-460.0,0.00016438,2]
[369402006,1751566233832,-460.0,0.00016438,2]
[369402007,1751566233841,-460.0,0.00016438,2]
[369402008,1751566233854,-539.38498773,0.00016438,2]
[369402009,1751566233863,-468.13587749,0.00016438,2]
[369402010,1751566233873,-460.0,0.00016438,2]
[369402011,1751566233883,-460.0,0.00016438,2]
[369402012,1751566233893,-460.0,0.00016438,2]
[369402013,1751566233903,-460.0,0.00016438,2]
[369402014,1751566233912,-460.0,0.00016438,2]
[369402015,1751566233922,-460.0,0.00016438,2]
[369402016,1751566233932,-460.0,0.00016438,2]
[369402017,1751566233942,-460.0,0.00016438,2]
[369402018,1751566233951,-460.0,0.00016438,2]
[369402019,1751566233961,-460.0,0.00016438,2]
[369402020,1751566233970,-413.87966159,0.00016438,2]
[369402021,1751566233981,-460.0,0.00016438,2]
[369402022,1751566233990,-460.0,0.00016438,2]
[369402023,1751566234000,-460.0,0.00016438,2]
[369402024,1751566234010,-460.0,0.00016438,2]
[369402025,1751566234020,-460.0,0.00016438,2]